Cogmind - Beta 13 *** ADVENTURER MODE // 2024.07.30 @ 11:10:48 Player: Jefffff Result: Self-destructed Performance ------------- Evolutions (4) 2000 Regions Visited (5) 1000 Robots Destroyed (81) 405 Value Destroyed (2112) 2112 Prototype IDs (2) 40 Alien Tech Used (0) 0 Bonus (0) 0 TOTAL SCORE: 5557 Bonus ------- None Cogmind --------- Core Integrity 703/850 Matter 173/300 Energy 201/300 System Corruption 0% Temperature Critical (564) Movement Core (500) Ox9 Location -6/Factory Parts ------- > --- POWER (2) -------- Heavy Ion Engine Enhanced Nuclear Core > --- PROPULSION (5) --- Aluminum Leg > --- UTILITY (6) ------ Huge Storage Unit Advanced Weight Redist. System Advanced Weight Redist. System Signal Interpreter Improved Targeting Computer Hardened Light Armor Plating > --- WEAPON (2) ------- Plasma Cannon Great Axe > --- INVENTORY (25) --- Improved Ion Engine Advanced Heat Sink Advanced Heat Sink Matter Compressor (0) Weight Redist. System Advanced Weight Redist. System Structural Scanner Terrain Scanner Advanced Terrain Scan Processor Transport Network Coupler Improved Salvage Targeting Computer Target Analyzer Armor Integrity Analyzer Improved Light Armor Plating Improved Medium Armor Plating Layered Light Armor Plating Improved Thermal Shield Hardlight Generator Hacking Suite System Shield System Shield Relay Coupler [Behemoth] (7) Peak State ------------ > --- POWER ------------ Heavy Ion Engine Enhanced Nuclear Core > --- PROPULSION ------- Aluminum Leg Aluminum Leg Improved Aluminum Leg Carbon-fiber Leg Carbon-fiber Leg > --- UTILITY ---------- Huge Storage Unit Advanced Weight Redist. System Advanced Weight Redist. System Signal Interpreter Improved Targeting Computer Medium Reactive Plating > --- WEAPON ----------- Heavy Assault Cannon > --- INVENTORY -------- Improved Ion Engine Advanced Heat Sink Advanced Heat Sink Weight Redist. System Advanced Weight Redist. System Structural Scanner Terrain Scanner Advanced Terrain Scan Processor Transport Network Coupler Improved Salvage Targeting Computer Target Analyzer Armor Integrity Analyzer Hardened Light Armor Plating Improved Medium Armor Plating Layered Light Armor Plating Improved Thermal Shield Hardlight Generator Hacking Suite System Shield System Shield Plasma Cannon Great Axe [Rating: 45] Favorites ----------- Power Light Ion Engine Engine Light Ion Engine Power Core Enhanced Nuclear Core Propulsion Aluminum Leg Treads Light Treads Leg Aluminum Leg Wheel Compact Wheel Utility Huge Storage Unit Device Sensor Array Storage Huge Storage Unit Processor Signal Interpreter Protection Propulsion Shielding Weapon Light Assault Rifle Energy Gun Medium Laser Energy Cannon Plasma Cannon Ballistic Gun Light Assault Rifle Ballistic Cannon Improved Light Cannon Slashing Weapon Great Axe Build | -11 -10 -9 -8 -7 -6 ------- Run | Yrd Mat Mat Mat Fac Fac Slots Evolved 8 | . . 2 2 2 2 Power 1 | . . . . . 1 Propulsion 3 | . . . 2 . 1 Utility 4 | . . 2 . 2 . Weapon . | . . . . . . Parts Attached 69 | 6 17 7 22 10 7 Power 12 | 1 3 1 4 2 1 Engine 11 | 1 3 1 4 1 1 Core 1 | . . . . 1 . Reactor . | . . . . . . Propulsion 28 | 2 4 4 13 3 2 Treads 2 | . . . 2 . . Leg 15 | . 2 1 7 3 2 Wheel 11 | 2 2 3 4 . . Hover . | . . . . . . Flight . | . . . . . . Utility 16 | 1 5 2 2 4 2 Device 3 | . . 1 . 2 . Storage 5 | 1 3 1 . . . Processor 3 | . . . . 2 1 Hackware . | . . . . . . Protection 5 | . 2 . 2 . 1 Artifact . | . . . . . . Weapon 13 | 2 5 . 3 1 2 Energy Gun 2 | 2 . . . . . Energy Cannon 1 | . . . . . 1 Ballistic Gun 6 | . 4 . 2 . . Ballistic Cannon 3 | . 1 . 1 1 . Launcher . | . . . . . . Special Weapon . | . . . . . . Impact Weapon . | . . . . . . Slashing Weapon 1 | . . . . . 1 Piercing Weapon . | . . . . . . Special Melee Weapon . | . . . . . . Unidentified Prototypes 2 | . . 1 . 1 . Parts Lost 12 | . . . 5 1 6 Power . | . . . . . . Propulsion 8 | . . . 3 1 4 Utility 2 | . . . 1 . 1 Weapon 2 | . . . 1 . 1 Highest Loss Streak 5 | . . . 3 1 5 To Critical Strikes . | . . . . . . Average Slot Usage (%) 94 | . 96 94 91 97 92 Engine 9 | . 14 11 9 5 6 Leg 18 | . 19 7 16 29 32 Wheel 6 | . 8 9 8 . . Device 8 | . . 11 9 12 15 Storage 16 | . 14 22 18 13 6 Processor 2 | . . . . 11 10 Protection 9 | . 11 11 9 7 6 Energy Gun 1 | . 6 . . . . Ballistic Gun 13 | . 16 22 15 4 . Ballistic Cannon 3 | . 5 . 2 7 5 Naked Turns . | . . . . . . Heaviest Build 129 | 12 14 97 115 121 129 Greatest Support 72 | 20 20 32 53 62 72 Greatest Overweight (x) 32 | . . 32 32 3 1 Average Overweight (x) 2 | . . 4 3 1 1 Largest Inventory Capacity 25 | 8 8 25 25 25 25 Average Capacity 21 | 6 5 25 25 25 25 Most Carried 25 | 5 5 25 25 25 24 Average Carried 18 | 1 4 18 24 24 22 Final Capacity 25 | 8 5 25 25 25 25 Final Carried 25 | . 5 25 25 24 22 Class Distribution -------------------- 51% | Mutant 37% | Scavenger-Mutant 11% | Scavenger-Skirmisher Dominant Class ---------------- Mutant | -10/Materials Mutant | -9/Materials Scavenger-Mutant | -8/Materials Scavenger-Skirmisher | -7/Factory Scavenger-Mutant | -6/Factory Resources | -11 -10 -9 -8 -7 -6 ----------- Run | Yrd Mat Mat Mat Fac Fac Matter Collected 2236 | 216 457 476 624 228 235 Remotely . | . . . . . . Salvage Created 2688 | . 506 600 943 384 255 Parts 157 | . 37 33 60 16 11 Haulers Intercepted 8 | . 2 2 3 1 . Recyclers Shooed . | . . . . . . Parts Field Recycled . | . . . . . . Retrieved Matter . | . . . . . . Parts Self-Destructed . | . . . . . . Prevented . | . . . . . . Kills | -11 -10 -9 -8 -7 -6 ------- Run | Yrd Mat Mat Mat Fac Fac Combat Hostiles Destroyed 50 | . 15 6 15 7 7 Guns 26 | . 7 6 11 2 . Cannons 23 | . 7 . 4 5 7 Classes Destroyed 13 | . 7 3 1 1 1 Worker 6 | . 2 . 3 . 1 Builder 6 | . 1 . 3 . 2 Tunneler 3 | . 1 1 . 1 . Hauler 8 | . 2 2 3 1 . Recycler 4 | . . 2 1 1 . Watcher 4 | . 3 1 . . . Swarmer 12 | . 9 . 3 . . Grunt 23 | . 6 3 6 6 2 Brawler 1 | . . 1 . . . Duelist 2 | . . . . . 2 Sentry 10 | . . 2 5 . 3 Hunter 1 | . . . 1 . . Programmer 1 | . . . . 1 . Best Kill Streak 8 | . 8 2 3 4 4 Combat Bots Only 6 | . 6 2 3 2 3 Max Kills in Single Turn 2 | . 2 1 1 1 2 Gunslinging 1 | . 1 . . . . Exploded . | . . . . . . Melee . | . . . . . . Uniques/NPCs Destroyed . | . . . . . . Combat | -11 -10 -9 -8 -7 -6 -------- Run | Yrd Mat Mat Mat Fac Fac Hostile Shots Fired 438 | . 67 40 116 31 184 Missed 124 | . 21 10 26 7 60 Damage Taken 3082 | . 363 295 941 282 1201 Core 506 | . 58 106 174 21 147 Absorbed by Shields . | . . . . . . Redirected to Shielding 83 | . 8 14 61 . . Ignored by Resistances 1054 | . 114 88 336 79 437 Regen/Repaired (Parts) 47 | . . 18 29 . . Core Remaining (%) 82 | 100 76 73 68 97 . Volleys Fired 257 | . 56 44 85 27 45 Largest 2 | . 2 2 2 2 1 Hottest 100 | . 100 40 62 62 80 Shots Fired 461 | . 111 88 170 47 45 Gun 329 | . 79 88 142 20 . Cannon 132 | . 32 . 28 27 45 Launcher . | . . . . . . Special . | . . . . . . Kinetic 409 | . 65 88 170 47 39 Thermal 52 | . 46 . . . 6 Explosive . | . . . . . . Electromagnetic . | . . . . . . Robot Hit Streak 36 | . 24 20 36 17 20 Robot Miss Streak 4 | . 2 1 4 1 1 Penetration Max 1 | . . . . 1 1 Secondary Targets 4 | . 2 . 2 . . Max Gunslinging Chain 1 | . 1 . 1 . . Shots Hit Robots 373 | . 85 74 140 37 37 Core Hits 150 | . 35 28 60 17 10 Critical Kills . | . . . . . . Critical Parts Destroyed 2 | . 1 . 1 . . Critical Strikes 11 | . 2 . 1 . 8 Burn 1 | . 1 . . . . Destroy 2 | . 1 . 1 . . Blast 8 | . . . . . 8 Melee Attacks . | . . . . . . Impact . | . . . . . . Slashing . | . . . . . . Piercing . | . . . . . . Sneak Attacks . | . . . . . . Combat Hostiles . | . . . . . . Follow-up Attacks . | . . . . . . Damage Inflicted 6681 | . 1099 794 1829 1025 1934 Guns 3116 | . 664 794 1373 285 . Cannons 3565 | . 435 . 456 740 1934 Explosions . | . . . . . . Melee . | . . . . . . Ramming . | . . . . . . Kinetic 6070 | . 615 794 1829 1025 1807 Thermal 611 | . 484 . . . 127 Explosive . | . . . . . . Electromagnetic . | . . . . . . Impact . | . . . . . . Slashing . | . . . . . . Piercing . | . . . . . . Highest Corruption 1 | . . 1 . 1 . Average Corruption 1 | . . 1 . 1 . Corruption Purged . | . . . . . . Corruption Blocked . | . . . . . . Effects 8 | . . 2 . 6 . Message Errors 1 | . . . . 1 . Matter Fused 3 | . . 1 . 2 . Heat Flow Errors 3 | . . 1 . 2 . Energy Discharges 1 | . . . . 1 . Overload Shots . | . . . . . . Overflow Damage 116 | . . . . 27 89 Projectiles 116 | . . . . 27 89 Explosions . | . . . . . . Melee . | . . . . . . Knockbacks 28 | . 4 . 3 7 14 Impact . | . . . . . . Kinetic 26 | . 4 . 3 7 12 Secondary 2 | . . . . . 2 Self-Inflicted Damage . | . . . . . . Shots . | . . . . . . Rammed . | . . . . . . Targets Rammed . | . . . . . . Kicked . | . . . . . . Crushed . | . . . . . . Highest Temperature 564 | . 444 123 31 130 564 Average Temperature 99 | . 111 16 8 23 161 Received Heat Transfer 1616 | . 144 171 513 171 617 Effects 14 | . 3 . . . 11 Shutdowns 4 | . 1 . . . 3 Energy Bleed 2 | . 1 . . . 1 Interference 3 | . . . . . 3 Short Circuit 3 | . . . . . 3 Damage (minor) 2 | . 1 . . . 1 Siege Activations . | . . . . . . Robots Corrupted . | . . . . . . Combat Hostiles . | . . . . . . Parts Fried . | . . . . . . Impact Corruptions . | . . . . . . Robots Melted 1 | . 1 . . . . Combat Hostiles 1 | . 1 . . . . Parts Melted 4 | . 4 . . . . Heat Transferred 1767 | . 1517 . . . 250 Parts Sabotaged . | . . . . . . Parts Stolen . | . . . . . . Parts Stripped . | . . . . . . Power Chain Reactions . | . . . . . . Alert | -11 -10 -9 -8 -7 -6 ------- Run | Yrd Mat Mat Mat Fac Fac Peak Influence 384 | . 346 121 261 103 384 Initial 58 | . . 20 4 58 26 Average 73 | . 151 31 54 53 157 Maximum Alert Level 1 | . 1 . 1 . 1 Low Security (%) 88 | 100 66 100 88 100 73 Level 1 11 | . 33 . 11 . 26 Level 2 . | . . . . . . Level 3 . | . . . . . . Level 4 . | . . . . . . Level 5 . | . . . . . . High Security . | . . . . . . Max Security . | . . . . . . Squads Dispatched 13 | . 2 1 2 4 4 Investigation 6 | . 2 1 1 2 . Extermination 2 | . . . . 2 . Reinforcement 2 | . . . 1 . 1 Assault 1 | . . . . . 1 Garrison 2 | . . . . . 2 Intercept . | . . . . . . Searches Triggered . | . . . . . . Construction Impeded . | . . . . . . Haulers Reinforced . | . . . . . . Active Scanning Responses . | . . . . . . Cargo Convoy Interrupts . | . . . . . . Stealth | -11 -10 -9 -8 -7 -6 --------- Run | Yrd Mat Mat Mat Fac Fac Distress Signals 6 | . . 2 4 . . Communications Jammed . | . . . . . . Distress Signals . | . . . . . . Times Spotted 80 | . 20 9 29 10 12 Peak Tracking Total 5 | . 4 2 5 5 4 Tactical Retreats 1 | . . . 1 . . Traps | -11 -10 -9 -8 -7 -6 ------- Run | Yrd Mat Mat Mat Fac Fac Traps Triggered 4 | . 3 . 1 . . Indirectly . | . . . . . . Trap Hack Attempts . | . . . . . . Triggered . | . . . . . . Disarmed . | . . . . . . Reprogrammed . | . . . . . . Reused . | . . . . . . Traps Extracted . | . . . . . . Installed . | . . . . . . Triggered . | . . . . . . Machines | -11 -10 -9 -8 -7 -6 ---------- Run | Yrd Mat Mat Mat Fac Fac Machines Disabled 4 | . . . 1 . 3 Max in Single Turn 1 | . . . 1 . 1 Garrison Access 1 | . . . . . 1 Machines Repaired . | . . . . . . Machines Dismantled . | . . . . . . Machines Sabotaged . | . . . . . . Overloaded Fab Kills . | . . . . . . Hacking | -11 -10 -9 -8 -7 -6 --------- Run | Yrd Mat Mat Mat Fac Fac Machines Accessed 17 | . 6 4 4 3 . Terminals 11 | . 6 2 2 1 . Fabricators 2 | . . . . 2 . Repair Stations 2 | . . 1 1 . . Recycling Units 1 | . . 1 . . . Scanalyzers 1 | . . . 1 . . Garrison Access . | . . . . . . Total Hacks 54 | . 11 14 20 9 . Successful 30 | . 6 7 9 8 . Failed 23 | . 5 7 10 1 . Catastrophic 2 | . 1 1 . . . Database Lockouts 1 | . . . 1 . . Manual 37 | . 11 8 16 2 . Terminals 37 | . 11 8 16 2 . Fabricators 7 | . . . . 7 . Repair Stations 5 | . . 3 2 . . Recycling Units 3 | . . 3 . . . Scanalyzers 2 | . . . 2 . . Garrison Access . | . . . . . . Terminal Hacks 3 | . . . 3 . . Part Schematic 2 | . . . 2 . . Terminal Index 1 | . . . 1 . . Fabricator Hacks 7 | . . . . 7 . Network Status 1 | . . . . 1 . Load Schematic 2 | . . . . 2 . Build 4 | . . . . 4 . Repair Station Hacks 4 | . . 2 2 . . Scan Component 2 | . . 1 1 . . Repair 2 | . . 1 1 . . Recycling Unit Hacks 2 | . . 2 . . . Report Inventory 1 | . . 1 . . . Retrieve Components 1 | . . 1 . . . Scanalyzer 2 | . . . 2 . . Insert Component 1 | . . . 1 . . Analyze 1 | . . . 1 . . Garrison Access Hacks . | . . . . . . Unauthorized Hacks 12 | . 6 3 2 1 . Terminals 12 | . 6 3 2 1 . Assimilate 1 | . . 1 . . . Botnet 11 | . 6 2 2 1 . Fabricators . | . . . . . . Repair Stations . | . . . . . . Recycling Units . | . . . . . . Scanalyzers . | . . . . . . Garrison Access . | . . . . . . Data Cores Recovered . | . . . . . . Used . | . . . . . . Hacking Detections 14 | . 5 3 3 3 . Full Trace Events 5 | . 1 2 . 2 . Feedback Events 1 | . . 1 . . . Corruption 1 | . . 1 . . . Feedback Blocked . | . . . . . . Robot Schematics Acquired . | . . . . . . Robots Built . | . . . . . . Authchips . | . . . . . . Time . | . . . . . . Total Robot Build Rating . | . . . . . . Part Schematics Acquired 3 | . . . 3 . . Parts Built 7 | . . . . 7 . Authchips . | . . . . . . Time 336 | . . . . 336 . Total Part Build Rating 28 | . . . . 28 . Parts Repaired 2 | . . 1 1 . . Time 64 | . . 26 38 . . Parts Recycled . | . . . . . . Recycled Matter . | . . . . . . Retrieved Matter . | . . . . . . Retrieved Components 2 | . . 2 . . . Parts Scanalyzed 1 | . . . 1 . . Part Schematics Acquired 1 | . . . 1 . . Parts Damaged . | . . . . . . Bothacking | -11 -10 -9 -8 -7 -6 ------------ Run | Yrd Mat Mat Mat Fac Fac Used RIF Installer . | . . . . . . Robots Hacked . | . . . . . . Non-combat . | . . . . . . Combat . | . . . . . . Robot Hacks Applied . | . . . . . . Relay Couplers Released 1 | . . . . . 1 Machine Destruction 1 | . . . . . 1 Fabnet Peak Effective % . | . . . . . . Robots Rewired . | . . . . . . Allies Hacked . | . . . . . . Hacks Repelled . | . . . . . . Allies | -11 -10 -9 -8 -7 -6 -------- Run | Yrd Mat Mat Mat Fac Fac Total Allies 1 | . . 1 . . . Largest Group 1 | . . 1 1 . . Highest-Rated Group 10 | . . 10 10 . . Highest-Rated Ally 10 | . . 10 10 . . Total Orders . | . . . . . . Ally Attacks . | . . . . . . Total Damage . | . . . . . . Kills . | . . . . . . Allies Corrupted . | . . . . . . Allies Melted . | . . . . . . Intel | -11 -10 -9 -8 -7 -6 ------- Run | Yrd Mat Mat Mat Fac Fac Robot Analysis Total . | . . . . . . Derelict Logs Recovered . | . . . . . . Drone Launches . | . . . . . . Drone Recoveries . | . . . . . . Exploration | -11 -10 -9 -8 -7 -6 ------------- Run | Yrd Mat Mat Mat Fac Fac Turns Passed 6135 | 38 1134 1452 1903 1178 430 Spaces Moved 2474 | 42 852 503 653 311 113 Core 36 | 22 . 11 3 . . Treads 14 | . . . 14 . . Legs 1331 | . 556 120 231 311 113 Wheels 1093 | 20 296 372 405 . . Hover . | . . . . . . Flight . | . . . . . . Fastest Speed 50 | 50 80 145 140 190 190 Average Speed 183 | 64 106 238 213 255 190 Slowest Speed 1650 | 80 120 1650 1650 330 190 Overloaded Moves . | . . . . . . Propulsion Burnouts . | . . . . . . Robots Hopped . | . . . . . . Cave-ins Triggered . | . . . . . . Exploration Rate (%) 32 | 3 97 36 46 10 3 Regions Visited 5 Branch Regions . Pre-discovered Areas . | . . . . . . Known Exits Taken 1 | . . . . 1 . Unknown Exits Taken 4 | 1 1 1 1 . . Scrap Searched . | . . . . . . Spaces Dug . | . . . . . . Terrain Destroyed 5 | . . . . 1 4 Melee . | . . . . . . Projectile 5 | . . . . 1 4 AOE . | . . . . . . Terrain Rammed . | . . . . . . Walls Destroyed . | . . . . . . Machines Disabled . | . . . . . . Actions | -11 -10 -9 -8 -7 -6 --------- Run | Yrd Mat Mat Mat Fac Fac Total 3652 | 52 984 682 1018 652 264 Wait 688 | . 24 82 214 280 88 Move 2469 | 41 851 502 652 310 113 Hop . | . . . . . . Pick Up 91 | 5 15 35 17 12 7 Fast Attach 17 | 1 3 . 12 1 . Attach 30 | 5 5 5 3 7 5 Detach . | . . . . . . Swap 22 | . 9 2 7 2 2 Drop 78 | . 21 12 28 13 4 Fire 257 | . 56 44 85 27 45 Melee . | . . . . . . Ram . | . . . . . . Kick . | . . . . . . Crush . | . . . . . . Escape Stasis . | . . . . . . Rewire . | . . . . . . Trap . | . . . . . . Miscellaneous . | . . . . . . Route ------- -11/Scrapyard -10/Materials (discovered 5 exits: *Mat x3 / [*Min x2]) -9/Materials (discovered 2 exits: *Mat / [*Min]) -8/Materials -7/Factory -6/Factory History --------- Turn | Location | Event 5 | -11/Scrapyard | Discovered new exit (range 16) 39 | -11/Scrapyard | Entered Materials 185 | -10/Materials | Discovered new exit (range 16) 264 | -10/Materials | Discovered new exit (range 9) 276 | -10/Materials | Discovered new exit (range 15) 308 | -10/Materials | Build established: Mutant 501 | -10/Materials | Discovered new exit (range 7) 721 | -10/Materials | Discovered new exit (range 10) 1173 | -10/Materials | Entered another Materials area 1173 | -9/Materials | Evolved 2 slots: Utility x2 1924 | -9/Materials | Repaired Com. Wheel 1974 | -9/Materials | Discovered new exit (range 14) 2603 | -9/Materials | Discovered new exit (range 16) 2625 | -9/Materials | Entered another Materials area 2625 | -8/Materials | Accompanied by 1 ally 2625 | -8/Materials | Evolved 2 slots: Propulsion x2 3023 | -8/Materials | Central database locked down 3297 | -8/Materials | Lost 3 parts (2n1u) 3684 | -8/Materials | Repaired Carbon-fiber Leg 4060 | -8/Materials | Build established: Scavenger-Mutant 4522 | -8/Materials | Discovered new exit (range 3) 4528 | -8/Materials | Entered Factory 4528 | -7/Factory | Evolved 2 slots: Utility x2 4843 | -7/Factory | Build established: Scavenger-Skirmisher 5117 | -7/Factory | Fabricated Imp. Thermal Shield (x2) 5197 | -7/Factory | Fabricated Adv. Weight Redist. System (x2) 5352 | -7/Factory | Fabricated Armor Integrity Analyzer (x1) 5428 | -7/Factory | Fabricated Adv. Weight Redist. System (x2) 5530 | -7/Factory | Build established: Scavenger-Mutant 5678 | -7/Factory | Discovered new exit (range 11) 5704 | -7/Factory | Identified exit to Factory 5706 | -7/Factory | Entered another Factory area 5706 | -6/Factory | Evolved 2 slots: Power x1, Propulsion x1 5857 | -6/Factory | Garrison activated, responded to threat 6136 | -6/Factory | Self-destructed Last Messages --------------- 06128_ Overheating: Short circuit. 06129_ K-01 Serf collects debris. 06130_ Power failure, Enh. Nuclear Core shutdown. 06130_ Pressure Siphon disabled. 06130_ K-01 Serf collects debris. 06131_ Overheating: Plasma Cannon damaged (-30). 06132_ Imp. Aluminum Leg destroyed. 06133_ K-01 Serf collects debris. 06133_ Aluminum Leg destroyed. 06134_ Signal Interpreter broken. 06134_ Overheating: Short circuit. 06134_ K-01 Serf collects debris. 06135_ Overheating: System interference. 06135_ Adv. Weight Redist. System temporarily disabled. 06135_ Plasma Cannon temporarily disabled. 06135_ Adv. Weight Redist. System temporarily disabled. 06135_ G-67 Veteran overheating. Map ----- +----------------------------------------------------+ | ?????????????????????????????????????????????????? | | ?????????????????????????????????????????????????? | | ?????????????????????????????????????????????????? | | ?????????????????????????????????????????????????? | | ?????????????????????????????????????????????????? | | ?????????????????????????????????????????????????? | | ?????????????????????????????????????????????????? | | ?????????????????????????????????????????????????? | | ?????????????????????????????????????????????????? | | ?????????????????????????????????????????????????? | | ?????????????????????????????????????????????????? | | ?????????????????????????????????????????????????? | | ?????????????????????????????????????????????????? | | ?????????????????????????????????"???????????????? | | ??????????????###??????????????? ???????????????? | | ?????????###### #######????????? ""??????????????? | | ?????????# #???????? """"????????????? | | ?????????# #???????? """"????????????? | | ?????????# """""" #???????? u ?????????????? | | ?????????# """""" #??????? """"????????????? | | ?????????# """""" #???????" """" "??????????? | | ?????????# """""" ########% """" "??????????? | | ?"???????# # !!%% ???????????? | | "???????# # k%g*% """"????????????? | | "???????# " " # %%g k """"????????????? | | ????????# " !+ @ %% % %"""????????????? | | ?????????# "" #% ????????? | | ?????????# # """" """"???????? | | #######################!*""" """" ???????????? | | =%%"" """"????????????? | | [% !! """ ????????????? | | = %"" ???????????? | | ???????????? | | ??????????? | | ###+#####################+############+#?????????? | | ?????????????????????????????????????????????????? | | ?????????????????????????????????????????????????? | | ?????????????????????????????????????????????????? | | ?????????????????????????????????????????????????? | | ?????????????????????????????????????????????????? | | ?????????????????????????????????????????????????? | | ?????????????????????????????????????????????????? | | ?????????????????????????????????????????????????? | | ?????????????????????????????????????????????????? | | ?????????????????????????????????????????????????? | | ?????????????????????????????????????????????????? | | ?????????????????????????????????????????????????? | | ?????????????????????????????????????????????????? | | ?????????????????????????????????????????????????? | | ?????????????????????????????????????????????????? | +----------------------------------------------------+ Best States ------------- Heat Dissipation 37 Energy Generation 26 Energy Capacity 480 Matter Stores 500 Matter Capacity 500 Sight Range 18 Robot Scan Range 14 Terrain Scan Density 10 Additional Mass Support 9 Armor Coverage 225 Resistance: KI 50 Resistance: TH 20 Resistance: EX 20 Resistance: EM 20 Resistance: I 20 Resistance: S 20 Resistance: P 20 Propulsion Shielding 33 Utility Shielding 66 Evasion (%) 55 Targeting Accuracy 6 Recoil Reduction 1 Offensive Hacking 10 Item Schematics ----------------- Adv. Weight Redist. System | -8/Materials | Scanalyzed Huge Storage Unit | -8/Materials | Hacked System Shield | -8/Materials | Hacked Robot Schematics ------------------ None Fabricated ------------ Imp. Thermal Shield | x2 | -7/Factory | Preloaded Adv. Weight Redist. System | x2 | -7/Factory Armor Integrity Analyzer | x1 | -7/Factory | Preloaded Adv. Weight Redist. System | x2 | -7/Factory Alien Tech Used ----------------- None Achievements -------------- None Challenges ------------ None Game ------ Seed CoilAntigravAirjet Manual? 0 Play Time 00:40:33 Cumulative 104.2 hours Start 2024.07.30 @ 10:32:55 End 2024.07.30 @ 11:10:48 Sessions 1 Manual Loads 0 Difficulty Adventurer Special Mode None Game No. 145 Rogue 0 Adventurer 145 Explorer 0 Win Type - Total 0 Types 0/0/0/0/0/0/0/0/0 Lore% 47 Gallery% 50 Achievement% 37 Wizard Run 0 Options --------- Layout 2 ASCII 0 Keyboard 0 Movement Mouse Keybinds 0 Fullscreen 2 Font 48/Terminus Map View 50x44 Zoom Use 0% Tactical HUD 1 Map Filters NONE Filters NONE Steam 1 RUN: 3c9e8c1d-a2b0-4f2d-9035-34782c135050